{"text_format":"3","workbook":"xlsx","n_sheets":2,"sheets":["ΕΝΑΡΞΗ","ΠΡΟΣΩΠΙΚΟΣ ΜΗΝ. ΠΡΟΫΠΟΛΟΓΙΣΜΟΣ"],"read":"whole","date_system":"1900"}

{"sheet":"ΕΝΑΡΞΗ","index":0,"n_rows":7,"n_cols":2,"rows_kept":7}
[null,"ΣΧΕΤΙΚΑ ΜΕ ΑΥΤΟ ΤΟ ΠΡΟΤΥΠΟ"]
[null,"Χρησιμοποιήστε αυτό το φύλλο εργασίας \"Προσωπικός μηνιαίος προϋπολογισμός\" για να παρακολουθείτε το προβλεπόμενο και το πραγματικό μηνιαίο εισόδημα, καθώς και τα προβλεπόμενα και τα πραγματικά έξοδα."]
[null,"Εισαγάγετε τα έξοδα που προκύπτουν σε διάφορες κατηγορίες στους αντίστοιχους πίνακες."]
[null,"Το προβλεπόμενο υπόλοιπο, το πραγματικό υπόλοιπο και η διαφορά υπολογίζονται αυτόματα."]
[null,"Σημείωση: "]
[null,"Στη στήλη A στο φύλλο εργασίας \"ΠΡΟΣΩΠΙΚΟΣ ΜΗΝΙΑΙΟΣ ΠΡΟΫΠΟΛΟΓΙΣΜΟΣ\" παρέχονται πρόσθετες οδηγίες. Αυτό το κείμενο είναι κρυφό σκόπιμα. Για να καταργήσετε το κείμενο, επιλέξτε τη στήλη A και, στη συνέχεια, πατήστε το πλήκτρο DELETE. Για να εμφανίσετε το κείμενο, επιλέξτε τη στήλη A και, στη συνέχεια, αλλάξτε το χρώμα γραμματοσειράς."]
[null,"Για να μάθετε περισσότερα για τους πίνακες στο φύλλο εργασίας, πατήστε το πλήκτρο SHIFT και, στη συνέχεια, F10 μέσα σε έναν πίνακα, επιλέξτε \"ΠΙΝΑΚΑΣ\" και, στη συνέχεια, επιλέξτε \"ΕΝΑΛΛΑΚΤΙΚΟ ΚΕΙΜΕΝΟ\"."]

{"sheet":"ΠΡΟΣΩΠΙΚΟΣ ΜΗΝ. ΠΡΟΫΠΟΛΟΓΙΣΜΟΣ","index":1,"n_rows":64,"n_cols":10,"rows_kept":64,"merged":[[3,1,5,1],[3,2,3,3],[3,6,4,8],[3,9,4,9],[4,2,4,3],[5,2,5,3],[5,6,6,8],[5,9,6,9],[7,1,9,1],[7,2,7,3],[7,6,8,8],[7,9,8,9],[8,2,8,3],[9,2,9,3],[58,6,59,8],[58,9,59,9],[60,6,61,8],[60,9,61,9],[62,6,63,8],[62,9,63,9]]}
["Δημιουργήστε έναν προσωπικό μηνιαίο προϋπολογισμό σε αυτό το φύλλο εργασίας. Σε διάφορα κελιά σε αυτή τη στήλη βρίσκονται χρήσιμες οδηγίες για τον τρόπο χρήσης αυτού του φύλλου εργασίας. Πατήστε το κάτω βέλος για να ξεκινήσετε."]
["Ο τίτλος αυτού του φύλλου εργασίας βρίσκεται στο κελί στα δεξιά. Η επόμενη οδηγία βρίσκεται στο κελί A4.","ΠΡΟΣΩΠΙΚΟΣ ΜΗΝ. ΠΡΟΫΠΟΛΟΓΙΣΜΟΣ"]
[]
["Η ετικέτα του προβλεπόμενου μηνιαίου εισοδήματος βρίσκεται στο κελί στα δεξιά. Εισαγάγετε το εισόδημα 1 στο κελί E4 και το επιπλέον εισόδημα στο E5 για να υπολογιστεί το συνολικό μηνιαίο εισόδημα στο E6. Η επόμενη οδηγία βρίσκεται στο κελί A6.","ΠΡΟΒΛΕΠΟΜΕΝΟ ΜΗΝΑΙΟ ΕΙΣΟΔΗΜΑ","Εισόδημα 1",null,{"v":4300,"d":"4,300.00 €"},null,"ΠΡΟΒΛΕΠΟΜΕΝΟ ΥΠΟΛΟΙΠΟ \n(Προβλεπόμενο εισόδημα μείον έξοδα)",null,null,{"$f":"E6-J59","v":{"v":3405,"d":"3,405.00 €"}}]
[null,null,"Επιπλέον εισόδημα",null,{"v":300,"d":"300.00 €"}]
["Το προβλεπόμενο υπόλοιπο υπολογίζεται αυτόματα στο κελί J4, το πραγματικό υπόλοιπο στο J6 και η διαφορά στο J8. Η επόμενη οδηγία βρίσκεται στο κελί A8.",null,"Συνολικό μηνιαίο εισόδημα",null,{"$f":"SUM(E4:E5)","v":{"v":4600,"d":"4,600.00 €"}},null,"ΠΡΑΓΜΑΤΙΚΟ ΥΠΟΛΟΙΠΟ \n(Πραγματικό εισόδημα μείον έξοδα)",null,null,{"$f":"E10-J61","v":{"v":3064,"d":"3,064.00 €"}}]
[]
["Η ετικέτα του πραγματικού μηνιαίου εισοδήματος βρίσκεται στο κελί στα δεξιά. Εισαγάγετε το εισόδημα 1 στο κελί E8 και το επιπλέον εισόδημα στο E9 για να υπολογιστεί το συνολικό μηνιαίο εισόδημα στο E10. Η επόμενη οδηγία βρίσκεται στο κελί A12.","ΠΡΑΓΜΑΤΙΚΟ ΜΗΝΑΙΟ ΕΙΣΟΔΗΜΑ","Εισόδημα 1",null,{"v":4000,"d":"4,000.00 €"},null,"ΔΙΑΦΟΡΑ \n(Πραγματικό μείον προβλεπόμενο)",null,null,{"$f":"J6-J4","v":{"v":-341,"d":"-341.00 €"}}]
[null,null,"Επιπλέον εισόδημα",null,{"v":300,"d":"300.00 €"}]
[null,null,"Συνολικό μηνιαίο εισόδημα",null,{"$f":"SUM(E8:E9)","v":{"v":4300,"d":"4,300.00 €"}}]
[]
["Εισαγάγετε λεπτομέρειες στον πίνακα στέγασης που ξεκινά στο κελί στα δεξιά και στον πίνακα διασκέδασης που ξεκινά στο κελί G12. Η επόμενη οδηγία βρίσκεται στο κελί A25.","ΣΤΕΓΑΣΗ","Προβλεπόμενα έξοδα","Πραγματικά έξοδα","Διαφορά",null,"ΔΙΑΣΚΕΔΑΣΗ","Προβλεπόμενα έξοδα","Πραγματικά έξοδα","Διαφορά"]
[null,"Στεγαστικό ή ενοίκιο",{"v":1000,"d":"1,000.00 €"},{"v":1000,"d":"1,000.00 €"},{"$f":"Στέγαση[[#This Row],[Προβλεπόμενα έξοδα]]-Στέγαση[[#This Row],[Πραγματικά έξοδα]]","v":{"v":0,"d":"0.00 €"}},null,"Νυχτερινή έξοδος",null,null,{"$f":"Διασκέδαση[[#This Row],[Προβλεπόμενα έξοδα]]-Διασκέδαση[[#This Row],[Πραγματικά έξοδα]]","v":{"v":0,"d":"0.00 €"}}]
[null,"Τηλέφωνο",{"v":54,"d":"54.00 €"},{"v":100,"d":"100.00 €"},{"$f":"Στέγαση[[#This Row],[Προβλεπόμενα έξοδα]]-Στέγαση[[#This Row],[Πραγματικά έξοδα]]","v":{"v":-46,"d":"-46.00 €"}},null,"Πλατφόρμες μουσικής",null,null,{"$f":"Διασκέδαση[[#This Row],[Προβλεπόμενα έξοδα]]-Διασκέδαση[[#This Row],[Πραγματικά έξοδα]]","v":{"v":0,"d":"0.00 €"}}]
[null,"Ηλεκτρικό",{"v":44,"d":"44.00 €"},{"v":56,"d":"56.00 €"},{"$f":"Στέγαση[[#This Row],[Προβλεπόμενα έξοδα]]-Στέγαση[[#This Row],[Πραγματικά έξοδα]]","v":{"v":-12,"d":"-12.00 €"}},null,"Ταινίες",null,null,{"$f":"Διασκέδαση[[#This Row],[Προβλεπόμενα έξοδα]]-Διασκέδαση[[#This Row],[Πραγματικά έξοδα]]","v":{"v":0,"d":"0.00 €"}}]
[null,"Αέριο",{"v":22,"d":"22.00 €"},{"v":28,"d":"28.00 €"},{"$f":"Στέγαση[[#This Row],[Προβλεπόμενα έξοδα]]-Στέγαση[[#This Row],[Πραγματικά έξοδα]]","v":{"v":-6,"d":"-6.00 €"}},null,"Συναυλίες",null,null,{"$f":"Διασκέδαση[[#This Row],[Προβλεπόμενα έξοδα]]-Διασκέδαση[[#This Row],[Πραγματικά έξοδα]]","v":{"v":0,"d":"0.00 €"}}]
[null,"Ύδρευση και αποχέτευση",{"v":8,"d":"8.00 €"},{"v":8,"d":"8.00 €"},{"$f":"Στέγαση[[#This Row],[Προβλεπόμενα έξοδα]]-Στέγαση[[#This Row],[Πραγματικά έξοδα]]","v":{"v":0,"d":"0.00 €"}},null,"Αθλητικές εκδηλώσεις",null,null,{"$f":"Διασκέδαση[[#This Row],[Προβλεπόμενα έξοδα]]-Διασκέδαση[[#This Row],[Πραγματικά έξοδα]]","v":{"v":0,"d":"0.00 €"}}]
[null,"Συνδρομητική τηλεόραση",{"v":34,"d":"34.00 €"},{"v":34,"d":"34.00 €"},{"$f":"Στέγαση[[#This Row],[Προβλεπόμενα έξοδα]]-Στέγαση[[#This Row],[Πραγματικά έξοδα]]","v":{"v":0,"d":"0.00 €"}},null,"Θέατρο",null,null,{"$f":"Διασκέδαση[[#This Row],[Προβλεπόμενα έξοδα]]-Διασκέδαση[[#This Row],[Πραγματικά έξοδα]]","v":{"v":0,"d":"0.00 €"}}]
[null,"Αποκομιδή σκουπιδιών",{"v":10,"d":"10.00 €"},{"v":10,"d":"10.00 €"},{"$f":"Στέγαση[[#This Row],[Προβλεπόμενα έξοδα]]-Στέγαση[[#This Row],[Πραγματικά έξοδα]]","v":{"v":0,"d":"0.00 €"}},null,"Άλλο",null,null,{"$f":"Διασκέδαση[[#This Row],[Προβλεπόμενα έξοδα]]-Διασκέδαση[[#This Row],[Πραγματικά έξοδα]]","v":{"v":0,"d":"0.00 €"}}]
[null,"Συντήρηση ή επισκευές",{"v":23,"d":"23.00 €"},{"v":0,"d":"0.00 €"},{"$f":"Στέγαση[[#This Row],[Προβλεπόμενα έξοδα]]-Στέγαση[[#This Row],[Πραγματικά έξοδα]]","v":{"v":23,"d":"23.00 €"}},null,"Άλλο",null,null,{"$f":"Διασκέδαση[[#This Row],[Προβλεπόμενα έξοδα]]-Διασκέδαση[[#This Row],[Πραγματικά έξοδα]]","v":{"v":0,"d":"0.00 €"}}]
[null,"Προμήθειες",{"v":0,"d":"0.00 €"},{"v":0,"d":"0.00 €"},{"$f":"Στέγαση[[#This Row],[Προβλεπόμενα έξοδα]]-Στέγαση[[#This Row],[Πραγματικά έξοδα]]","v":{"v":0,"d":"0.00 €"}},null,"Άλλο",null,null,{"$f":"Διασκέδαση[[#This Row],[Προβλεπόμενα έξοδα]]-Διασκέδαση[[#This Row],[Πραγματικά έξοδα]]","v":{"v":0,"d":"0.00 €"}}]
[null,"Άλλο",{"v":0,"d":"0.00 €"},{"v":0,"d":"0.00 €"},{"$f":"Στέγαση[[#This Row],[Προβλεπόμενα έξοδα]]-Στέγαση[[#This Row],[Πραγματικά έξοδα]]","v":{"v":0,"d":"0.00 €"}},null,"Μερικό άθροισμα",null,null,{"$f":"SUBTOTAL(109,Διασκέδαση[Διαφορά])","v":{"v":0,"d":"0.00 €"}}]
[null,"Μερικό άθροισμα",null,null,{"$f":"SUBTOTAL(109,Στέγαση[Διαφορά])","v":{"v":-41,"d":"-41.00 €"}}]
[{"$nulls":6},"ΔΑΝΕΙΑ","Προβλεπόμενα έξοδα","Πραγματικά έξοδα","Διαφορά"]
["Εισαγάγετε λεπτομέρειες στον πίνακα μετακινήσεων που ξεκινά στο κελί στα δεξιά και στον πίνακα δανείων που ξεκινά στο κελί G24. Η επόμενη οδηγία βρίσκεται στο κελί A35.","ΜΕΤΑΚΙΝΗΣΕΙΣ","Προβλεπόμενα έξοδα","Πραγματικά έξοδα","Διαφορά",null,"Προσωπικό",null,null,{"$f":"Δάνεια[[#This Row],[Προβλεπόμενα έξοδα]]-Δάνεια[[#This Row],[Πραγματικά έξοδα]]","v":{"v":0,"d":"0.00 €"}}]
[null,"Δόση οχήματος",null,null,{"$f":"Μετακινήσεις[[#This Row],[Προβλεπόμενα έξοδα]]-Μετακινήσεις[[#This Row],[Πραγματικά έξοδα]]","v":{"v":0,"d":"0.00 €"}},null,"Φοιτητικό",null,null,{"$f":"Δάνεια[[#This Row],[Προβλεπόμενα έξοδα]]-Δάνεια[[#This Row],[Πραγματικά έξοδα]]","v":{"v":0,"d":"0.00 €"}}]
[null,"Ναύλα λεωφορείου/ταξί",null,null,{"$f":"Μετακινήσεις[[#This Row],[Προβλεπόμενα έξοδα]]-Μετακινήσεις[[#This Row],[Πραγματικά έξοδα]]","v":{"v":0,"d":"0.00 €"}},null,"Πιστωτική κάρτα",null,null,{"$f":"Δάνεια[[#This Row],[Προβλεπόμενα έξοδα]]-Δάνεια[[#This Row],[Πραγματικά έξοδα]]","v":{"v":0,"d":"0.00 €"}}]
[null,"Ασφάλεια",null,null,{"$f":"Μετακινήσεις[[#This Row],[Προβλεπόμενα έξοδα]]-Μετακινήσεις[[#This Row],[Πραγματικά έξοδα]]","v":{"v":0,"d":"0.00 €"}},null,"Πιστωτική κάρτα",null,null,{"$f":"Δάνεια[[#This Row],[Προβλεπόμενα έξοδα]]-Δάνεια[[#This Row],[Πραγματικά έξοδα]]","v":{"v":0,"d":"0.00 €"}}]
[null,"Τέλη κυκλοφορίας",null,null,{"$f":"Μετακινήσεις[[#This Row],[Προβλεπόμενα έξοδα]]-Μετακινήσεις[[#This Row],[Πραγματικά έξοδα]]","v":{"v":0,"d":"0.00 €"}},null,"Πιστωτική κάρτα",null,null,{"$f":"Δάνεια[[#This Row],[Προβλεπόμενα έξοδα]]-Δάνεια[[#This Row],[Πραγματικά έξοδα]]","v":{"v":0,"d":"0.00 €"}}]
[null,"Καύσιμα",null,null,{"$f":"Μετακινήσεις[[#This Row],[Προβλεπόμενα έξοδα]]-Μετακινήσεις[[#This Row],[Πραγματικά έξοδα]]","v":{"v":0,"d":"0.00 €"}},null,"Άλλο",null,null,{"$f":"Δάνεια[[#This Row],[Προβλεπόμενα έξοδα]]-Δάνεια[[#This Row],[Πραγματικά έξοδα]]","v":{"v":0,"d":"0.00 €"}}]
[null,"Συντήρηση",null,null,{"$f":"Μετακινήσεις[[#This Row],[Προβλεπόμενα έξοδα]]-Μετακινήσεις[[#This Row],[Πραγματικά έξοδα]]","v":{"v":0,"d":"0.00 €"}},null,"Μερικό άθροισμα",null,null,{"$f":"SUBTOTAL(109,Δάνεια[Διαφορά])","v":{"v":0,"d":"0.00 €"}}]
[null,"Άλλο",null,null,{"$f":"Μετακινήσεις[[#This Row],[Προβλεπόμενα έξοδα]]-Μετακινήσεις[[#This Row],[Πραγματικά έξοδα]]","v":{"v":0,"d":"0.00 €"}}]
[null,"Μερικό άθροισμα",null,null,{"$f":"SUBTOTAL(109,Μετακινήσεις[Διαφορά])","v":{"v":0,"d":"0.00 €"}},null,"ΦΟΡΟΙ","Προβλεπόμενα έξοδα","Πραγματικά έξοδα","Διαφορά"]
[{"$nulls":6},"Εθνικοί",null,null,{"$f":"Φόροι[[#This Row],[Προβλεπόμενα έξοδα]]-Φόροι[[#This Row],[Πραγματικά έξοδα]]","v":{"v":0,"d":"0.00 €"}}]
["Εισαγάγετε λεπτομέρειες στον πίνακα ασφάλειας που ξεκινά στο κελί στα δεξιά και στον πίνακα φόρων που ξεκινά στο κελί G33. Η επόμενη οδηγία βρίσκεται στο κελί A42.","ΑΣΦΑΛΕΙΑ","Προβλεπόμενα έξοδα","Πραγματικά έξοδα","Διαφορά",null,"Περιφερειακοί",null,null,{"$f":"Φόροι[[#This Row],[Προβλεπόμενα έξοδα]]-Φόροι[[#This Row],[Πραγματικά έξοδα]]","v":{"v":0,"d":"0.00 €"}}]
[null,"Σπιτιού",null,null,{"$f":"Ασφάλεια[[#This Row],[Προβλεπόμενα έξοδα]]-Ασφάλεια[[#This Row],[Πραγματικά έξοδα]]","v":{"v":0,"d":"0.00 €"}},null,"Δημοτικοί",null,null,{"$f":"Φόροι[[#This Row],[Προβλεπόμενα έξοδα]]-Φόροι[[#This Row],[Πραγματικά έξοδα]]","v":{"v":0,"d":"0.00 €"}}]
[null,"Υγείας",null,null,{"$f":"Ασφάλεια[[#This Row],[Προβλεπόμενα έξοδα]]-Ασφάλεια[[#This Row],[Πραγματικά έξοδα]]","v":{"v":0,"d":"0.00 €"}},null,"Άλλο",null,null,{"$f":"Φόροι[[#This Row],[Προβλεπόμενα έξοδα]]-Φόροι[[#This Row],[Πραγματικά έξοδα]]","v":{"v":0,"d":"0.00 €"}}]
[null,"Ζωής",null,null,{"$f":"Ασφάλεια[[#This Row],[Προβλεπόμενα έξοδα]]-Ασφάλεια[[#This Row],[Πραγματικά έξοδα]]","v":{"v":0,"d":"0.00 €"}},null,"Μερικό άθροισμα",null,null,{"$f":"SUBTOTAL(109,Φόροι[Διαφορά])","v":{"v":0,"d":"0.00 €"}}]
[null,"Άλλο",null,null,{"$f":"Ασφάλεια[[#This Row],[Προβλεπόμενα έξοδα]]-Ασφάλεια[[#This Row],[Πραγματικά έξοδα]]","v":{"v":0,"d":"0.00 €"}}]
[null,"Μερικό άθροισμα",null,null,{"$f":"SUBTOTAL(109,Ασφάλεια[Διαφορά])","v":{"v":0,"d":"0.00 €"}},null,"ΑΠΟΤΑΜΙΕΥΣΕΙΣ Ή ΕΠΕΝΔΥΣΕΙΣ","Προβλεπόμενα έξοδα","Πραγματικά έξοδα","Διαφορά"]
[{"$nulls":6},"Λογαριασμός συνταξιοδότησης",null,null,{"$f":"Ταμιευτήριο[[#This Row],[Προβλεπόμενα έξοδα]]-Ταμιευτήριο[[#This Row],[Πραγματικά έξοδα]]","v":{"v":0,"d":"0.00 €"}}]
["Εισαγάγετε λεπτομέρειες στον πίνακα φαγητού που ξεκινά στο κελί στα δεξιά και στον πίνακα αποταμιεύσεων που ξεκινά στο κελί G40. Η επόμενη οδηγία βρίσκεται στο κελί A48.","ΦΑΓΗΤΟ","Προβλεπόμενα έξοδα","Πραγματικά έξοδα","Διαφορά",null,"Επενδυτικός λογαριασμός",null,null,{"$f":"Ταμιευτήριο[[#This Row],[Προβλεπόμενα έξοδα]]-Ταμιευτήριο[[#This Row],[Πραγματικά έξοδα]]","v":{"v":0,"d":"0.00 €"}}]
[null,"Ψώνια",null,null,{"$f":"Τρόφιμα[[#This Row],[Προβλεπόμενα έξοδα]]-Τρόφιμα[[#This Row],[Πραγματικά έξοδα]]","v":{"v":0,"d":"0.00 €"}},null,"Άλλο",null,null,{"$f":"Ταμιευτήριο[[#This Row],[Προβλεπόμενα έξοδα]]-Ταμιευτήριο[[#This Row],[Πραγματικά έξοδα]]","v":{"v":0,"d":"0.00 €"}}]
[null,"Εστιατόρια",null,null,{"$f":"Τρόφιμα[[#This Row],[Προβλεπόμενα έξοδα]]-Τρόφιμα[[#This Row],[Πραγματικά έξοδα]]","v":{"v":0,"d":"0.00 €"}},null,"Μερικό άθροισμα",null,null,{"$f":"SUBTOTAL(109,Ταμιευτήριο[Διαφορά])","v":{"v":0,"d":"0.00 €"}}]
[null,"Άλλο",null,null,{"$f":"Τρόφιμα[[#This Row],[Προβλεπόμενα έξοδα]]-Τρόφιμα[[#This Row],[Πραγματικά έξοδα]]","v":{"v":0,"d":"0.00 €"}}]
[null,"Μερικό άθροισμα",null,null,{"$f":"SUBTOTAL(109,Τρόφιμα[Διαφορά])","v":{"v":0,"d":"0.00 €"}},null,"ΔΩΡΑ ΚΑΙ ΔΩΡΕΕΣ","Προβλεπόμενα έξοδα","Πραγματικά έξοδα","Διαφορά"]
[{"$nulls":6},"Φιλανθρωπική οργάνωση 1",null,null,{"$f":"Δώρα[[#This Row],[Προβλεπόμενα έξοδα]]-Δώρα[[#This Row],[Πραγματικά έξοδα]]","v":{"v":0,"d":"0.00 €"}}]
["Εισαγάγετε λεπτομέρειες στον πίνακα κατοικίδιων που ξεκινά στο κελί στα δεξιά και στον πίνακα δώρων που ξεκινά στο κελί G46. Η επόμενη οδηγία βρίσκεται στο κελί A56.","ΚΑΤΟΙΚΙΔΙΑ","Προβλεπόμενα έξοδα","Πραγματικά έξοδα","Διαφορά",null,"Φιλανθρωπική οργάνωση 2",null,null,{"$f":"Δώρα[[#This Row],[Προβλεπόμενα έξοδα]]-Δώρα[[#This Row],[Πραγματικά έξοδα]]","v":{"v":0,"d":"0.00 €"}}]
[null,"Φαγητό",null,null,{"$f":"Κατοικίδια[[#This Row],[Προβλεπόμενα έξοδα]]-Κατοικίδια[[#This Row],[Πραγματικά έξοδα]]","v":{"v":0,"d":"0.00 €"}},null,"Φιλανθρωπική οργάνωση 3",null,null,{"$f":"Δώρα[[#This Row],[Προβλεπόμενα έξοδα]]-Δώρα[[#This Row],[Πραγματικά έξοδα]]","v":{"v":0,"d":"0.00 €"}}]
[null,"Ιατρικά",null,null,{"$f":"Κατοικίδια[[#This Row],[Προβλεπόμενα έξοδα]]-Κατοικίδια[[#This Row],[Πραγματικά έξοδα]]","v":{"v":0,"d":"0.00 €"}},null,"Μερικό άθροισμα",null,null,{"$f":"SUBTOTAL(109,Δώρα[Διαφορά])","v":{"v":0,"d":"0.00 €"}}]
[null,"Περιποίηση",null,null,{"$f":"Κατοικίδια[[#This Row],[Προβλεπόμενα έξοδα]]-Κατοικίδια[[#This Row],[Πραγματικά έξοδα]]","v":{"v":0,"d":"0.00 €"}}]
[null,"Παιχνίδια",null,null,{"$f":"Κατοικίδια[[#This Row],[Προβλεπόμενα έξοδα]]-Κατοικίδια[[#This Row],[Πραγματικά έξοδα]]","v":{"v":0,"d":"0.00 €"}},null,"ΝΟΜΙΚΑ","Προβλεπόμενα έξοδα","Πραγματικά έξοδα","Διαφορά"]
[null,"Άλλο",null,null,{"$f":"Κατοικίδια[[#This Row],[Προβλεπόμενα έξοδα]]-Κατοικίδια[[#This Row],[Πραγματικά έξοδα]]","v":{"v":0,"d":"0.00 €"}},null,"Δικηγόρος",null,null,{"$f":"Νομικά[[#This Row],[Προβλεπόμενα έξοδα]]-Νομικά[[#This Row],[Πραγματικά έξοδα]]","v":{"v":0,"d":"0.00 €"}}]
[null,"Μερικό άθροισμα",null,null,{"$f":"SUBTOTAL(109,Κατοικίδια[Διαφορά])","v":{"v":0,"d":"0.00 €"}},null,"Διατροφή",null,null,{"$f":"Νομικά[[#This Row],[Προβλεπόμενα έξοδα]]-Νομικά[[#This Row],[Πραγματικά έξοδα]]","v":{"v":0,"d":"0.00 €"}}]
[{"$nulls":6},"Πληρωμές με επίσχεση ή δικαστική απόφαση",null,null,{"$f":"Νομικά[[#This Row],[Προβλεπόμενα έξοδα]]-Νομικά[[#This Row],[Πραγματικά έξοδα]]","v":{"v":0,"d":"0.00 €"}}]
["Εισαγάγετε λεπτομέρειες στον πίνακα προσωπικής φροντίδας που ξεκινά στο κελί στα δεξιά και στον πίνακα νομικών εξόδων που ξεκινά στο κελί G52. Η επόμενη οδηγία βρίσκεται στο κελί A59.","ΠΡΟΣΩΠΙΚΗ ΦΡΟΝΤΙΔΑ","Προβλεπόμενα έξοδα","Πραγματικά έξοδα","Διαφορά",null,"Άλλο",null,null,{"$f":"Νομικά[[#This Row],[Προβλεπόμενα έξοδα]]-Νομικά[[#This Row],[Πραγματικά έξοδα]]","v":{"v":0,"d":"0.00 €"}}]
[null,"Ιατρικά",null,null,{"$f":"ΠροσωπικήΦροντίδα[[#This Row],[Προβλεπόμενα έξοδα]]-ΠροσωπικήΦροντίδα[[#This Row],[Πραγματικά έξοδα]]","v":{"v":0,"d":"0.00 €"}},null,"Μερικό άθροισμα",null,null,{"$f":"SUBTOTAL(109,Νομικά[Διαφορά])","v":{"v":0,"d":"0.00 €"}}]
[null,"Κομμωτήριο",null,null,{"$f":"ΠροσωπικήΦροντίδα[[#This Row],[Προβλεπόμενα έξοδα]]-ΠροσωπικήΦροντίδα[[#This Row],[Πραγματικά έξοδα]]","v":{"v":0,"d":"0.00 €"}}]
["Τα συνολικά προβλεπόμενα έξοδα υπολογίζονται αυτόματα στο κελί J59, τα συνολικά πραγματικά έξοδα στο J61 και η συνολική διαφορά στο J63.","Ρούχα",null,null,{"$f":"ΠροσωπικήΦροντίδα[[#This Row],[Προβλεπόμενα έξοδα]]-ΠροσωπικήΦροντίδα[[#This Row],[Πραγματικά έξοδα]]","v":{"v":0,"d":"0.00 €"}},null,"ΣΥΝΟΛΙΚΑ ΠΡΟΒΛΕΠΟΜΕΝΑ ΕΞΟΔΑ",null,null,{"$f":"SUBTOTAL(109,Στέγαση[Προβλεπόμενα έξοδα],Μετακινήσεις[Προβλεπόμενα έξοδα],Ασφάλεια[Προβλεπόμενα έξοδα],Τρόφιμα[Προβλεπόμενα έξοδα],Κατοικίδια[Προβλεπόμενα έξοδα],ΠροσωπικήΦροντίδα[Προβλεπόμενα έξοδα],Διασκέδαση[Προβλεπόμενα έξοδα],Δάνεια[Προβλεπόμενα έξοδα],Φόροι[Προβλεπόμενα έξοδα],Ταμιευτήριο[Προβλεπόμενα έξοδα],Δώρα[Προβλεπόμενα έξοδα],Νομικά[Προβλεπόμενα έξοδα])","v":{"v":1195,"d":"1,195.00 €"}}]
[null,"Στεγνοκαθαριστήριο",null,null,{"$f":"ΠροσωπικήΦροντίδα[[#This Row],[Προβλεπόμενα έξοδα]]-ΠροσωπικήΦροντίδα[[#This Row],[Πραγματικά έξοδα]]","v":{"v":0,"d":"0.00 €"}}]
[null,"Γυμναστήριο",null,null,{"$f":"ΠροσωπικήΦροντίδα[[#This Row],[Προβλεπόμενα έξοδα]]-ΠροσωπικήΦροντίδα[[#This Row],[Πραγματικά έξοδα]]","v":{"v":0,"d":"0.00 €"}},null,"ΣΥΝΟΛΙΚΑ ΠΡΑΓΜΑΤΙΚΑ ΕΞΟΔΑ",null,null,{"$f":"SUBTOTAL(109,Στέγαση[Πραγματικά έξοδα],Μετακινήσεις[Πραγματικά έξοδα],Ασφάλεια[Πραγματικά έξοδα],Τρόφιμα[Πραγματικά έξοδα],Κατοικίδια[Πραγματικά έξοδα],ΠροσωπικήΦροντίδα[Πραγματικά έξοδα],Διασκέδαση[Πραγματικά έξοδα],Δάνεια[Πραγματικά έξοδα],Φόροι[Πραγματικά έξοδα],Ταμιευτήριο[Πραγματικά έξοδα],Δώρα[Πραγματικά έξοδα],Νομικά[Πραγματικά έξοδα])","v":{"v":1236,"d":"1,236.00 €"}}]
[null,"Συμμετοχή σε οργανώσεις",null,null,{"$f":"ΠροσωπικήΦροντίδα[[#This Row],[Προβλεπόμενα έξοδα]]-ΠροσωπικήΦροντίδα[[#This Row],[Πραγματικά έξοδα]]","v":{"v":0,"d":"0.00 €"}}]
[null,"Άλλο",null,null,{"$f":"ΠροσωπικήΦροντίδα[[#This Row],[Προβλεπόμενα έξοδα]]-ΠροσωπικήΦροντίδα[[#This Row],[Πραγματικά έξοδα]]","v":{"v":0,"d":"0.00 €"}},null,"ΣΥΝΟΛΙΚΗ ΔΙΑΦΟΡΑ",null,null,{"$f":"J59-J61","v":{"v":-41,"d":"-41.00 €"}}]
[null,"Μερικό άθροισμα",null,null,{"$f":"SUBTOTAL(109,ΠροσωπικήΦροντίδα[Διαφορά])","v":{"v":0,"d":"0.00 €"}}]